bitfinex-derivatives/quotes_SOLF0:USTF0_20250731
["timestamp","ask_amount","ask_price","bid_price","bid_amount"]
[1753928934051,4.68067899,179.83,179.67,9.36019596]
[1753928934247,4.04562657,179.82,179.67,9.36019596]
[1753928934448,4.04562657,179.81,179.67,9.36019596]
[1753928934645,4.04562657,179.8,179.67,9.36019596]
[1753928934847,4.04562657,179.79,179.67,9.36019596]
[1753928935039,4.68067899,179.83,179.67,9.36019596]
[1753928935245,4.04558019,179.82,179.68,9.36019596]
[1753928935450,4.04558019,179.81,179.68,9.36019596]
[1753928935643,4.04558019,179.8,179.68,9.36019596]
[1753928935843,4.04558019,179.79,179.68,9.36019596]
[1753928936140,4.68067899,179.83,179.68,9.36019596]
[1753928936339,4.0457234,179.82,179.68,9.36019596]
[1753928936552,4.0457234,179.81,179.68,9.36019596]
[1753928936739,4.0457234,179.8,179.68,9.36019596]
[1753928936939,4.0457234,179.79,179.68,9.36019596]
[1753928937145,4.68067899,179.83,179.68,9.36019596]
[1753928937351,4.04400856,179.82,179.68,9.36019596]
[1753928937549,4.04400856,179.81,179.68,9.36019596]
[1753928937749,4.04400856,179.8,179.68,9.36019596]
[1753928937948,4.04400856,179.79,179.68,9.36019596]
[1753928938249,4.68067899,179.84,179.68,9.36019596]
[1753928938447,4.04352277,179.83,179.68,9.36019596]
[1753928938646,4.04352277,179.82,179.68,9.36019596]
[1753928938847,4.04352277,179.81,179.68,9.36019596]
[1753928939046,4.04352277,179.8,179.68,9.36019596]
[1753928939251,4.68067899,179.84,179.68,9.36019596]
[1753928939550,4.04314927,179.83,179.68,9.36019596]
[1753928939850,4.04314927,179.82,179.68,9.36019596]
[1753928940052,4.04314927,179.81,179.68,9.36019596]
[1753928940241,4.04314927,179.8,179.68,9.36019596]
[1753928940447,4.68067899,179.84,179.68,9.36019596]
[1753928940753,4.04300173,179.83,179.68,9.36019596]
[1753928940944,4.04300173,179.82,179.68,9.36019596]
[1753928941143,4.04300173,179.81,179.68,9.36019596]
[1753928941344,4.04300173,179.8,179.68,9.36019596]
[1753928941645,4.67896222,179.84,179.68,9.36019596]
[1753928941842,4.04273541,179.83,179.68,9.36019596]
[1753928942046,4.04273541,179.82,179.68,9.36019596]
[1753928942246,4.04273541,179.81,179.68,9.36019596]
[1753928942452,4.04273541,179.8,179.68,9.36019596]
[1753928942751,4.67896222,179.84,179.68,9.36019596]
[1753928942953,4.0425619,179.83,179.68,9.36019596]
[1753928943147,4.0425619,179.82,179.68,9.36019596]
[1753928943345,4.0425619,179.81,179.68,9.36019596]
[1753928943551,4.0425619,179.8,179.68,9.36019596]
[1753928943751,4.67896222,179.84,179.68,9.36019596]
[1753928943952,4.04234546,179.83,179.68,9.36019596]
[1753928944147,4.04234546,179.82,179.68,9.36019596]
[1753928944348,4.04234546,179.81,179.68,9.36019596]
[1753928944556,4.04234546,179.8,179.68,9.36019596]
[1753928944756,4.67896222,179.84,179.68,9.36019596]
[1753928944961,4.04213527,179.83,179.68,9.36019596]
[1753928945256,4.04213527,179.82,179.68,9.36019596]
[1753928945451,4.04213527,179.81,179.68,9.36019596]
[1753928945652,4.04213527,179.8,179.68,9.36019596]
[1753928945853,4.67896222,179.84,179.68,9.36019596]
[1753928946051,4.04193103,179.83,179.68,9.36019596]
[1753928946354,4.04193103,179.82,179.68,9.36019596]
[1753928946555,4.04193103,179.81,179.68,9.36019596]
[1753928946763,4.04193103,179.8,179.68,9.36019596]
[1753928947055,4.67896222,179.84,179.68,9.36019596]
[1753928947255,4.0416882,179.83,179.68,9.36019596]
[1753928947454,4.0416882,179.82,179.68,9.36019596]
[1753928947657,4.0416882,179.81,179.68,9.36019596]
[1753928947954,4.67896222,179.84,179.68,9.36019596]
[1753928947955,4.0416882,179.8,179.68,9.36019596]
[1753928948148,4.67896222,179.84,179.68,9.36019596]
[1753928948350,4.04141436,179.83,179.68,9.36019596]
[1753928948655,4.04141436,179.82,179.68,9.36019596]
[1753928948953,4.04141436,179.81,179.68,9.36019596]
[1753928949146,4.04141436,179.8,179.68,9.36019596]
[1753928949354,4.67896222,179.84,179.68,9.36019596]
[1753928949552,4.04119841,179.83,179.68,9.36019596]
[1753928949751,4.04119841,179.82,179.68,9.36019596]
[1753928949960,4.04119841,179.81,179.68,9.36019596]
[1753928950163,4.67896222,179.85,179.68,9.36019596]
[1753928950356,4.04099106,179.84,179.68,9.36019596]
[1753928950562,4.04099106,179.83,179.68,9.36019596]
[1753928950762,4.04099106,179.82,179.68,9.36019596]
[1753928950964,4.04099106,179.81,179.68,9.36019596]
[1753928951158,4.67896222,179.85,179.68,9.36019596]
[1753928951359,4.04053467,179.84,179.68,9.36019596]
[1753928951559,4.04053467,179.83,179.68,9.36019596]
[1753928951759,4.04053467,179.82,179.68,9.36019596]
[1753928951954,4.04053467,179.81,179.68,9.36019596]
[1753928952158,4.67896222,179.85,179.68,9.36019596]
[1753928952360,8.71924813,179.84,179.67,9.36019596]
[1753928952561,4.04028591,179.83,179.67,9.36019596]
[1753928953165,8.71924813,179.83,179.66,9.36019596]
[1753928953366,4.04028591,179.82,179.66,9.36019596]
[1753928956569,4.04028591,179.82,179.67,9.36019596]
[1753928956867,4.04028591,179.82,179.68,9.36019596]
[1753928957060,4.04028591,179.81,179.68,9.36019596]
[1753928957261,4.04028591,179.8,179.68,9.36019596]
[1753928957567,4.67896222,179.84,179.68,9.36019596]
[1753928957869,4.04148922,179.83,179.68,9.36019596]
[1753928958061,4.04148922,179.82,179.68,9.36019596]
[1753928958263,4.04148922,179.81,179.68,9.36019596]
[1753928958457,4.04148922,179.8,179.68,9.36019596]
[1753928958662,4.67896222,179.84,179.68,9.36019596]
[1753928958860,4.04205858,179.83,179.68,9.36019596]
[1753928959166,4.04205858,179.82,179.68,9.36019596]
[1753928959365,4.04205858,179.81,179.68,9.36019596]
[1753928959565,4.04205858,179.8,179.68,9.36019596]
[1753928959863,4.67896222,179.84,179.68,9.36019596]
[1753928960062,4.04269213,179.83,179.68,9.36019596]
[1753928960263,4.04269213,179.82,179.68,9.36019596]
[1753928960464,4.04269213,179.81,179.68,9.36019596]
[1753928960661,4.67896222,179.87,179.71,9.36019596]
[1753928961066,8.72161242,179.87,179.71,9.36019596]
[1753928961263,4.0426502,179.86,179.71,9.36019596]
[1753928961464,4.0426502,179.85,179.71,9.36019596]
[1753928961664,4.0426502,179.84,179.71,9.36019596]
[1753928961864,4.0426502,179.83,179.71,9.36019596]
[1753928962066,4.67896222,179.87,179.71,9.36019596]
[1753928962469,4.0420864,179.86,179.71,9.36019596]
[1753928962774,4.0420864,179.85,179.71,9.36019596]
[1753928962967,4.0420864,179.84,179.71,9.36019596]
[1753928963273,4.0420864,179.83,179.71,9.36019596]
[1753928963573,4.0420864,179.82,179.71,9.36019596]
[1753928963773,4.67896222,179.87,179.71,9.36019596]
[1753928964272,8.72214886,179.87,179.71,9.36019596]
[1753928964472,4.04318664,179.86,179.71,9.36019596]
[1753928964672,4.04318664,179.85,179.71,9.36019596]
[1753928964872,4.04318664,179.84,179.71,9.36019596]
[1753928965067,4.04318664,179.83,179.71,9.36019596]
[1753928965267,4.0434647,179.82,179.71,9.36019596]
[1753928965570,4.67896222,179.86,179.7,9.36019596]
[1753928965770,8.72273951,179.85,179.7,9.36019596]
[1753928966075,4.04377729,179.84,179.69,9.36019596]
[1753928966273,8.72273951,179.84,179.69,9.36019596]
[1753928966475,4.04377729,179.83,179.69,9.36019596]
[1753928966675,4.04377729,179.82,179.69,9.36019596]
[1753928966879,4.04377729,179.81,179.69,9.36019596]
[1753928967076,4.04377729,179.8,179.69,9.36019596]
[1753928967277,4.67896222,179.84,179.69,9.36019596]
[1753928967478,4.67896222,179.84,179.68,9.36019596]
[1753928967678,4.67896222,179.82,179.67,9.36019596]
[1753928967875,8.72194523,179.82,179.67,9.36019596]
[1753928968068,4.04298301,179.81,179.67,9.36019596]
[1753928968377,4.04298301,179.8,179.67,9.36019596]
[1753928968580,4.04298301,179.79,179.67,9.36019596]
[1753928968771,4.04298301,179.78,179.67,9.36019596]
[1753928968971,4.67896222,179.82,179.67,9.36019596]
[1753928969568,8.7228776,179.82,179.67,9.36019596]
[1753928969773,4.04391538,179.81,179.67,9.36019596]
[1753928969974,4.04391538,179.8,179.67,9.36019596]
[1753928970175,4.04391538,179.79,179.67,9.36019596]
[1753928970378,4.04391538,179.78,179.67,9.36019596]
[1753928970675,4.67896222,179.82,179.67,9.36019596]
[1753928971275,8.72375332,179.82,179.67,9.36019596]
[1753928971475,4.0447911,179.81,179.67,9.36019596]
[1753928971672,4.0447911,179.8,179.67,9.36019596]
[1753928971873,4.0447911,179.79,179.67,9.36019596]
[1753928972072,4.0447911,179.78,179.67,9.36019596]
[1753928972273,4.67896222,179.82,179.67,9.36019596]
[1753928972780,8.72387801,179.82,179.67,9.36019596]
[1753928973079,4.04491579,179.81,179.67,9.36019596]
[1753928973277,4.04491579,179.8,179.67,9.36019596]
[1753928973473,4.04491579,179.79,179.67,9.36019596]
[1753928973674,4.04491579,179.78,179.65,9.36019596]
[1753928973980,4.04491579,179.77,179.65,9.36019596]
[1753928974177,4.04491579,179.76,179.65,9.36019596]
[1753928974389,4.67896222,179.8,179.65,9.36019596]
[1753928974876,8.72386585,179.8,179.65,9.36019596]
[1753928975076,4.04490363,179.79,179.65,9.36019596]
[1753928975281,4.04490363,179.78,179.65,9.36019596]
[1753928975470,4.04490363,179.77,179.65,9.36019596]
[1753928975675,4.04490363,179.76,179.65,9.36019596]
[1753928975875,4.67896222,179.8,179.65,9.36019596]
[1753928976277,8.72333458,179.8,179.65,9.36019596]
[1753928976473,4.04437236,179.79,179.65,9.36019596]
[1753928976678,4.04437236,179.78,179.65,9.36019596]
[1753928976880,4.04437236,179.77,179.65,9.36019596]
[1753928977076,4.04437236,179.76,179.64,9.36019596]
[1753928977383,4.04437236,179.75,179.64,9.36019596]
[1753928977575,4.67896222,179.79,179.63,9.36019596]
[1753928977977,8.72325227,179.79,179.63,9.36019596]
[1753928978291,4.04429005,179.78,179.63,9.36019596]
[1753928978482,4.04429005,179.77,179.63,9.36019596]
[1753928978680,4.04429005,179.76,179.63,9.36019596]
[1753928978880,4.04429005,179.75,179.63,9.36019596]
[1753928979083,4.67896222,179.79,179.64,9.36019596]
[1753928979286,4.67896222,179.79,179.63,9.36019596]
[1753928979583,4.67896222,179.79,179.6,7.0]
[1753928979584,4.04291966,179.78,179.64,9.36019596]
[1753928979782,4.04291966,179.77,179.64,9.36019596]
[1753928979983,4.04291966,179.76,179.63,9.36019596]
[1753928980284,4.67896222,179.8,179.64,9.36019596]
[1753928980482,4.67896222,179.79,179.63,9.36019596]
[1753928980882,8.72100049,179.79,179.63,9.36019596]
[1753928981187,4.04203827,179.78,179.63,9.36019596]
[1753928981482,4.04203827,179.77,179.63,9.36019596]
[1753928981788,4.04203827,179.76,179.63,9.36019596]
[1753928981988,4.04203827,179.75,179.63,9.36019596]
[1753928982190,4.67896222,179.8,179.63,9.36019596]
[1753928982784,8.71994314,179.8,179.63,9.36019596]
[1753928982980,4.04098092,179.79,179.63,9.36019596]
[1753928983182,4.04098092,179.78,179.63,9.36019596]
[1753928983384,4.04098092,179.77,179.63,9.36019596]
[1753928983584,4.04098092,179.76,179.63,9.36019596]
[1753928983783,4.67896222,179.8,179.63,9.36019596]
[1753928986081,4.04046954,179.79,179.64,9.36019596]
[1753928986281,4.04046954,179.78,179.64,9.36019596]
[1753928986477,4.04046954,179.77,179.64,9.36019596]
[1753928986683,4.67896222,179.81,179.64,9.36019596]
[1753928986982,4.03932014,179.8,179.64,9.36019596]
[1753928987187,4.03932014,179.79,179.65,9.36019596]
[1753928987390,4.03932014,179.78,179.65,9.36019596]
[1753928987583,4.67896222,179.82,179.65,9.36019596]
[1753928987789,4.03894092,179.81,179.65,9.36019596]
[1753928988083,4.03894092,179.8,179.65,9.36019596]
[1753928988390,4.03894092,179.79,179.65,9.36019596]
[1753928988587,4.03894092,179.78,179.65,9.36019596]
[1753928988785,4.67896222,179.82,179.65,9.36019596]
[1753928989083,4.03894366,179.81,179.65,9.36019596]
[1753928989393,4.03894366,179.8,179.65,9.36019596]
[1753928989589,4.03894366,179.79,179.65,9.36019596]
[1753928989786,4.03894366,179.78,179.65,9.36019596]
[1753928989984,4.67896222,179.82,179.65,9.36019596]
[1753928990286,4.03897552,179.81,179.65,9.36019596]
[1753928990484,4.03897552,179.8,179.65,9.36019596]
[1753928990681,4.03897552,179.79,179.65,9.36019596]
[1753928990879,4.03897552,179.78,179.65,9.36019596]
[1753928991083,4.67896222,179.82,179.65,9.36019596]
[1753928991279,4.03900673,179.81,179.65,9.36019596]
[1753928991480,4.03900673,179.8,179.65,9.36019596]
[1753928991690,4.03900673,179.79,179.65,9.36019596]
[1753928991892,4.03900673,179.78,179.65,9.36019596]
[1753928992092,4.67896222,179.82,179.65,9.36019596]
[1753928992393,4.03903957,179.81,179.65,9.36019596]
[1753928992587,4.03903957,179.8,179.65,9.36019596]
[1753928992788,4.03903957,179.79,179.65,9.36019596]
[1753928992986,4.03903957,179.78,179.65,9.36019596]
[1753928993187,4.67896222,179.82,179.65,9.36019596]
[1753928993387,4.03908091,179.81,179.65,9.36019596]
[1753928993587,4.03908091,179.8,179.65,9.36019596]
[1753928993788,4.03908091,179.79,179.65,9.36019596]
[1753928994087,4.03908091,179.78,179.65,9.36019596]
[1753928994391,4.67896222,179.82,179.65,9.36019596]
[1753928994592,4.03875066,179.81,179.66,9.36019596]
[1753928994789,4.03875066,179.8,179.66,9.36019596]
[1753928994995,4.03875066,179.79,179.66,9.36019596]
[1753928995193,4.67896222,179.83,179.66,9.36019596]
[1753928995393,4.03889744,179.82,179.66,9.36019596]
[1753928995590,4.03889744,179.81,179.66,9.36019596]
[1753928995790,4.03889744,179.8,179.66,9.36019596]
[1753928995990,4.03889744,179.79,179.66,9.36019596]
[1753928996189,4.67896222,179.83,179.66,9.36019596]
[1753928996387,4.03905211,179.82,179.66,9.36019596]
[1753928996593,4.03905211,179.81,179.66,9.36019596]
[1753928996792,4.03905211,179.8,179.66,9.36019596]
[1753928996990,4.03905211,179.79,179.66,9.36019596]
[1753928997190,4.67896222,179.83,179.66,9.36019596]
[1753928997392,4.04315599,179.82,179.66,9.36019596]
[1753928997592,8.72211821,179.82,179.66,9.36019596]
[1753928997895,4.04315599,179.81,179.66,9.36019596]
[1753929000696,4.04315599,179.8,179.66,9.36019596]
[1753929000893,4.04315599,179.79,179.66,9.36019596]
[1753929001096,4.67896222,179.83,179.66,9.36019596]
[1753929001399,4.04283338,179.82,179.66,9.36019596]
[1753929001589,4.04283338,179.81,179.66,9.36019596]
[1753929001786,4.67896222,179.83,179.66,9.36019596]
[1753929001787,4.04283338,179.8,179.66,9.36019596]
[1753929002090,4.04283338,179.79,179.66,9.36019596]
[1753929002290,4.67896222,179.83,179.66,9.36019596]
[1753929002487,4.04312168,179.82,179.66,9.36019596]
[1753929002702,4.04312168,179.81,179.66,9.36019596]
[1753929002896,4.04312168,179.8,179.66,9.36019596]
[1753929003197,4.04312168,179.79,179.66,9.36019596]
[1753929003400,4.67896222,179.83,179.66,9.36019596]
[1753929003592,4.04323101,179.82,179.66,9.36019596]
[1753929003893,4.04323101,179.81,179.66,9.36019596]
[1753929004093,4.04323101,179.8,179.66,9.36019596]
[1753929004290,4.04323101,179.79,179.66,9.36019596]
[1753929004497,4.67896222,179.83,179.66,9.36019596]
[1753929004696,4.04334497,179.82,179.66,9.36019596]
[1753929004898,4.04334497,179.81,179.66,9.36019596]
[1753929005100,4.04334497,179.8,179.66,9.36019596]
[1753929005296,4.04334497,179.79,179.66,9.36019596]
[1753929005498,4.67896222,179.83,179.66,16.36019596]
[1753929005696,4.0434127,179.82,179.67,9.36019596]
[1753929005897,4.0434127,179.81,179.68,9.36019596]
[1753929006099,4.0434127,179.8,179.68,9.36019596]
[1753929006298,4.67896222,179.85,179.68,9.36019596]
[1753929006498,4.04339835,179.84,179.68,9.36019596]
[1753929006698,4.04339835,179.83,179.68,9.36019596]
[1753929006899,4.04339835,179.82,179.68,9.36019596]
[1753929007100,4.04339835,179.81,179.69,9.36019596]
[1753929007402,4.67896222,179.85,179.69,9.36019596]
[1753929007602,4.04385956,179.84,179.69,9.36019596]
[1753929007903,4.67e-05,179.89,179.73,9.36019596]
[1753929008103,4.04306298,179.88,179.75,9.36019596]
[1753929008395,4.67e-05,179.89,179.75,9.36019596]
[1753929008604,4.04024217,179.88,179.74,9.36019596]
[1753929008802,4.04024217,179.87,179.74,9.36019596]
[1753929009102,4.67e-05,179.89,179.74,9.36019596]
[1753929009305,4.04082427,179.88,179.74,9.36019596]
[1753929009505,4.04082427,179.87,179.74,9.36019596]
[1753929009803,4.67e-05,179.89,179.74,9.36019596]
[1753929010002,4.03889412,179.88,179.74,9.36019596]
[1753929010303,4.03889412,179.87,179.73,9.36019596]
[1753929010601,4.67e-05,179.89,179.73,9.36019596]
[1753929010803,4.03749411,179.88,179.73,9.36019596]
[1753929010992,4.03749411,179.87,179.73,9.36019596]
[1753929011194,4.67e-05,179.89,179.73,9.36019596]
[1753929011398,4.03587057,179.88,179.73,9.36019596]
[1753929011595,4.67e-05,179.89,179.73,9.36019596]
[1753929011798,4.03586949,179.88,179.73,9.36019596]
[1753929011998,4.67e-05,179.89,179.73,9.36019596]
[1753929012196,4.03577547,179.88,179.73,9.36019596]
[1753929012406,4.67e-05,179.89,179.73,9.36019596]
[1753929012607,4.03439573,179.88,179.73,9.36019596]
[1753929012795,4.67e-05,179.89,179.73,9.36019596]
[1753929013000,4.03439573,179.88,179.73,9.36019596]
[1753929013300,4.67e-05,179.89,179.73,9.36019596]
[1753929013501,4.03413218,179.88,179.73,9.36019596]
[1753929013802,4.67e-05,179.89,179.73,9.36019596]
[1753929014001,4.03292544,179.88,179.73,9.36019596]
[1753929014202,4.67e-05,179.89,179.73,9.36019596]
[1753929014401,4.67e-05,179.89,179.72,9.36019596]
[1753929015502,4.67e-05,179.89,179.73,9.36019596]
[1753929017610,4.67e-05,179.89,179.73,16.36019596]
[1753929018411,4.67e-05,179.89,179.73,7.0]
[1753929023313,4.67e-05,179.89,179.75,9.36019596]
[1753929026513,4.67e-05,179.89,179.75,16.36019596]
[1753929029126,4.67e-05,179.89,179.75,7.0]
[1753929036033,4.67e-05,179.89,179.75,16.36019596]
[1753929037336,4.67896222,179.99,179.75,16.36019596]
[1753929037536,4.01769015,179.98,179.76,9.36019596]
[1753929037739,4.01769015,179.97,179.76,9.36019596]
[1753929038039,4.01769015,179.96,179.76,9.36019596]
[1753929038234,4.67896222,180.0,179.77,9.36019596]
[1753929038429,4.01781102,179.99,179.76,9.36019596]
[1753929038632,4.01781102,179.98,179.76,9.36019596]
[1753929038833,4.01781102,179.97,179.77,9.36019596]
[1753929039039,4.67896222,180.02,179.78,9.36019596]
[1753929039240,4.01816644,180.01,179.78,9.36019596]
[1753929039434,4.01816644,180.0,179.78,9.36019596]
[1753929039739,4.01816644,179.99,179.78,9.36019596]
[1753929039938,4.01816644,179.98,179.78,9.36019596]
[1753929040139,4.01816644,179.97,179.78,9.36019596]
[1753929040336,4.67896222,180.02,179.78,9.36019596]
[1753929040533,4.01765424,180.01,179.78,9.36019596]
[1753929040729,4.01765424,180.0,179.78,9.36019596]
[1753929040938,4.01765424,179.99,179.78,9.36019596]
[1753929041139,4.01765424,179.98,179.78,9.36019596]
[1753929041438,4.01765424,179.97,179.77,16.36019596]
[1753929041639,4.01765424,179.96,179.77,16.36019596]
[1753929041840,4.67896222,180.01,179.77,16.36019596]
[1753929042031,4.01832327,180.0,179.77,16.36019596]
[1753929042234,8.69728549,180.0,179.77,16.36019596]
[1753929042534,4.01832327,179.99,179.77,16.36019596]
[1753929047439,8.69728549,179.99,179.78,9.36019596]
[1753929047642,4.01832327,179.98,179.78,9.36019596]
[1753929048040,4.01832327,179.98,179.78,16.36019596]
[1753929050241,4.01832327,179.98,179.79,9.36019596]
[1753929050442,4.01832327,179.97,179.8,9.36019596]
[1753929050642,4.01832327,179.96,179.8,9.36019596]
[1753929050842,4.01832327,179.95,179.8,9.36019596]
[1753929051045,4.67896222,179.99,179.8,9.36019596]
[1753929051341,4.02989415,179.98,179.8,9.36019596]
[1753929051542,4.02989415,179.97,179.8,9.36019596]
[1753929051843,4.02989415,179.96,179.8,9.36019596]
[1753929052043,4.02989415,179.95,179.8,9.36019596]
[1753929052246,4.67896222,180.0,179.81,9.36019596]
[1753929052448,4.03160212,179.99,179.81,9.36019596]
[1753929052745,4.03160212,179.98,179.81,9.36019596]
[1753929052945,4.03160212,179.97,179.81,9.36019596]
[1753929053139,4.03160212,179.96,179.82,9.36019596]
[1753929053338,4.67896222,180.0,179.82,9.36019596]
[1753929053537,4.03267458,179.99,179.82,9.36019596]
[1753929053739,4.03267458,179.98,179.82,9.36019596]
[1753929053937,4.03267458,179.97,179.81,9.36019596]
[1753929054147,4.03267458,179.96,179.81,9.36019596]
[1753929054343,4.67896222,180.0,179.81,9.36019596]
[1753929054646,4.03279171,179.99,179.81,9.36019596]
[1753929054847,4.03279171,179.98,179.81,9.36019596]
[1753929055042,4.03279171,179.98,179.79,7.0]
[1753929055043,4.03279171,179.97,179.82,9.36019596]
[1753929055243,4.03279171,179.96,179.82,16.36019596]
[1753929055445,4.67896222,180.0,179.82,16.36019596]
[1753929055645,4.03274028,179.99,179.82,16.36019596]
[1753929055845,4.03274028,179.98,179.82,16.36019596]
[1753929056043,4.03274028,179.97,179.82,16.36019596]
[1753929056243,4.03274028,179.96,179.82,16.36019596]
[1753929056444,4.67896222,180.0,179.82,16.36019596]
[1753929056744,4.03284961,179.99,179.82,16.36019596]
[1753929057040,4.03284961,179.98,179.82,16.36019596]
[1753929057243,4.03284961,179.97,179.82,16.36019596]
[1753929057447,4.03284961,179.96,179.82,16.36019596]
[1753929057649,4.67896222,180.0,179.82,16.36019596]
[1753929057851,4.03329673,179.99,179.82,16.36019596]
[1753929058044,4.03329673,179.98,179.82,16.36019596]
[1753929058251,4.03329673,179.97,179.82,16.36019596]
[1753929058447,4.03329673,179.96,179.82,16.36019596]
[1753929058648,4.67896222,180.0,179.82,16.36019596]
[1753929058851,4.03358919,179.99,179.82,16.36019596]
[1753929059049,4.03358919,179.98,179.82,16.36019596]
[1753929059251,4.03358919,179.97,179.82,16.36019596]
[1753929059549,4.03358919,179.96,179.82,16.36019596]
[1753929059748,4.67896222,180.0,179.82,16.36019596]
[1753929059948,4.03395317,179.99,179.82,16.36019596]
[1753929060146,4.03395317,179.98,179.82,16.36019596]
[1753929060349,4.03395317,179.97,179.82,16.36019596]
[1753929060552,4.03395317,179.96,179.82,16.36019596]
[1753929060852,4.67896222,180.0,179.82,16.36019596]
[1753929061052,4.03452755,179.99,179.82,16.36019596]
[1753929061247,4.03452755,179.98,179.82,16.36019596]
[1753929061451,4.03452755,179.97,179.82,16.36019596]
[1753929061649,4.03452755,179.96,179.82,16.36019596]
[1753929061854,4.67896222,180.0,179.82,16.36019596]
[1753929062054,4.03479577,179.99,179.82,16.36019596]
[1753929062252,4.03479577,179.98,179.82,16.36019596]
[1753929062451,4.03479577,179.97,179.82,16.36019596]
[1753929062753,4.03479577,179.96,179.82,16.36019596]
[1753929062952,4.67896222,180.0,179.82,16.36019596]
[1753929063246,4.03515516,179.99,179.82,16.36019596]
[1753929063451,4.03515516,179.98,179.83,9.36019596]
[1753929063751,4.03515516,179.97,179.83,9.36019596]
[1753929063953,4.03515516,179.96,179.83,9.36019596]
[1753929064153,4.67896222,180.0,179.83,9.36019596]
[1753929064354,4.0355609,179.99,179.83,9.36019596]
[1753929064556,4.0355609,179.98,179.83,9.36019596]
[1753929064854,4.0355609,179.97,179.83,9.36019596]
[1753929065054,4.0355609,179.96,179.83,9.36019596]
[1753929065255,4.67896222,180.0,179.83,9.36019596]
[1753929065559,4.0373867,179.99,179.83,9.36019596]
[1753929065756,8.71634892,179.99,179.83,9.36019596]
[1753929065958,4.0373867,179.98,179.83,9.36019596]
[1753929066257,4.0373867,179.97,179.83,9.36019596]
[1753929066454,4.0373867,179.96,179.83,9.36019596]
[1753929066657,4.0373867,179.95,179.83,9.36019596]
[1753929066857,4.67896222,180.0,179.83,9.36019596]
[1753929067161,4.03847294,179.99,179.83,9.36019596]
[1753929067363,8.71743516,179.99,179.84,9.36019596]
[1753929067561,4.03847294,179.98,179.84,9.36019596]
[1753929069360,4.03847294,179.98,179.86,9.36019596]
[1753929069557,4.67896222,180.02,179.86,9.36019596]
[1753929069763,4.03952293,180.01,179.86,9.36019596]
[1753929069964,4.03952293,180.0,179.86,9.36019596]
[1753929070163,4.03952293,179.99,179.86,9.36019596]
[1753929070461,4.03952293,179.98,179.86,9.36019596]
[1753929070661,4.67896222,180.02,179.86,9.36019596]
[1753929070861,4.03885268,180.01,179.86,9.36019596]
[1753929071062,4.03885268,180.0,179.86,9.36019596]
[1753929071260,4.03885268,179.99,179.86,9.36019596]
[1753929071461,4.03885268,179.98,179.86,9.36019596]
[1753929071666,4.67896222,180.02,179.86,9.36019596]
[1753929071869,4.03830964,180.01,179.86,9.36019596]
[1753929072165,4.03830964,180.0,179.85,9.36019596]
[1753929072362,4.03830964,179.99,179.85,9.36019596]
[1753929072562,4.03830964,179.98,179.85,9.36019596]
[1753929072763,4.03830964,179.97,179.85,9.36019596]
[1753929072962,4.67896222,180.01,179.85,9.36019596]
[1753929073164,4.0382581,180.0,179.85,9.36019596]
[1753929073364,4.0382581,179.99,179.85,9.36019596]
[1753929073564,4.0382581,179.98,179.85,9.36019596]
[1753929073864,4.0382581,179.97,179.85,9.36019596]
[1753929074162,4.67896222,180.01,179.85,9.36019596]
[1753929074363,4.03811265,180.0,179.85,9.36019596]
[1753929074562,4.03811265,179.99,179.85,9.36019596]
[1753929074863,4.03811265,179.98,179.85,9.36019596]
[1753929075063,4.03811265,179.97,179.85,9.36019596]
[1753929075263,4.67896222,180.01,179.85,9.36019596]
[1753929075464,4.0384815,180.0,179.85,9.36019596]
[1753929075666,4.0384815,179.99,179.85,9.36019596]
[1753929075865,4.0384815,179.98,179.86,9.36019596]
[1753929076066,4.67896222,180.02,179.86,9.36019596]
[1753929076368,4.03797848,180.01,179.86,9.36019596]
[1753929076567,4.03797848,180.0,179.86,9.36019596]
[1753929076768,4.03797848,179.99,179.86,9.36019596]
[1753929076964,4.03797848,179.98,179.86,9.36019596]
[1753929077165,4.03797848,179.97,179.85,9.36019596]
[1753929077466,4.67896222,180.02,179.86,9.36019596]
[1753929077666,4.03858543,180.01,179.86,9.36019596]
[1753929077868,8.71754765,180.01,179.85,9.36019596]
[1753929078168,4.03858543,180.0,179.85,9.36019596]
[1753929079269,8.71754765,180.0,179.85,9.36019596]
[1753929079569,4.03858543,179.99,179.85,9.36019596]
[1753929083473,4.03858543,179.99,179.84,9.36019596]
[1753929083474,4.03858543,179.98,179.84,9.36019596]
[1753929083673,4.03858543,179.98,179.79,12.48026129]
[1753929083674,8.71754765,179.98,179.83,9.36019596]
[1753929083873,4.03858543,179.97,179.83,9.36019596]
[1753929084074,4.03858543,179.96,179.83,9.36019596]
[1753929084276,4.03858543,179.95,179.83,9.36019596]
[1753929084474,4.03858543,179.94,179.83,9.36019596]
[1753929084675,4.67896222,179.98,179.83,9.36019596]
[1753929084875,4.04213492,179.97,179.83,9.36019596]
[1753929085176,4.04213492,179.96,179.83,9.36019596]
[1753929085375,4.04213492,179.95,179.83,9.36019596]
[1753929085676,4.04213492,179.94,179.83,9.36019596]
[1753929085876,4.67896222,179.98,179.83,9.36019596]
[1753929086077,4.042143,179.97,179.83,9.36019596]
[1753929086276,4.042143,179.96,179.83,9.36019596]
[1753929086477,4.042143,179.95,179.83,9.36019596]
[1753929086679,4.042143,179.94,179.83,9.36019596]
[1753929086976,4.67896222,179.98,179.83,9.36019596]
[1753929087167,4.04244123,179.97,179.83,9.36019596]